[Event "Late-Titled-Tuesday-Blitz-October-17-2023"]
[Site "Chess.com"]
[Date "2023.10.17"]
[Round "8"]
[White "MathiasWomacka"]
[Black "NormWeinstein"]
[Result "1-0"]
[WhiteElo "2541"]
[BlackElo "2407"]
[TimeControl "180+1"]
[EndTime "15:25:55 PDT"]
[Termination "MathiasWomacka won on time"]

1. e4 {[%clk 0:03:00.9]} 1... c5 {[%clk 0:03:00.1]} 2. Nf3 {[%clk 0:03:00.4]}
2... d6 {[%clk 0:03:00.3]} 3. d4 {[%clk 0:03:00]} 3... Nf6 {[%clk 0:03:00.5]} 4.
Nc3 {[%clk 0:02:59]} 4... cxd4 {[%clk 0:03:00.5]} 5. Nxd4 {[%clk 0:02:59.9]}
5... Nc6 {[%clk 0:03:00.8]} 6. Be2 {[%clk 0:02:59.1]} 6... e6 {[%clk 0:03:00.8]}
7. Be3 {[%clk 0:02:57.7]} 7... Be7 {[%clk 0:03:00.7]} 8. O-O {[%clk 0:02:57.4]}
8... O-O {[%clk 0:03:00.6]} 9. f4 {[%clk 0:02:57.9]} 9... Bd7 {[%clk 0:03:00.2]}
10. Nb3 {[%clk 0:02:57.5]} 10... Na5 {[%clk 0:03:00.3]} 11. e5 {[%clk
0:02:53.1]} 11... Ne8 {[%clk 0:02:59.7]} 12. Ne4 {[%clk 0:02:24.1]} 12... Nxb3
{[%clk 0:02:30]} 13. axb3 {[%clk 0:02:25]} 13... Bc6 {[%clk 0:02:08.7]} 14. Bd3
{[%clk 0:02:13]} 14... a6 {[%clk 0:02:01.9]} 15. Kh1 {[%clk 0:01:52.3]} 15...
Qc7 {[%clk 0:02:00.3]} 16. Bd4 {[%clk 0:01:51.5]} 16... Rd8 {[%clk 0:01:59.1]}
17. Qh5 {[%clk 0:01:30.6]} 17... Bxe4 {[%clk 0:01:53.7]} 18. Bxe4 {[%clk
0:01:29.4]} 18... g6 {[%clk 0:01:53.8]} 19. Qf3 {[%clk 0:01:24.8]} 19... Ng7
{[%clk 0:01:46]} 20. Bxb7 {[%clk 0:01:20.8]} 20... Nf5 {[%clk 0:01:40.2]} 21.
Bc3 {[%clk 0:01:14.9]} 21... dxe5 {[%clk 0:01:29.5]} 22. fxe5 {[%clk 0:01:11.2]}
22... Nd4 {[%clk 0:01:23.4]} 23. Qe4 {[%clk 0:00:59.2]} 23... Nxc2 {[%clk
0:01:15.1]} 24. Rxa6 {[%clk 0:00:58.7]} 24... Ne3 {[%clk 0:01:07.3]} 25. Re1
{[%clk 0:00:52.7]} 25... Nd5 {[%clk 0:01:02.6]} 26. Bxd5 {[%clk 0:00:51.7]}
26... Rxd5 {[%clk 0:01:02.1]} 27. Qa4 {[%clk 0:00:44.9]} 27... Rfd8 {[%clk
0:00:51.4]} 28. h3 {[%clk 0:00:39.8]} 28... Rd1 {[%clk 0:00:45.1]} 29. Rxd1
{[%clk 0:00:35.1]} 29... Rxd1+ {[%clk 0:00:44.3]} 30. Kh2 {[%clk 0:00:36]} 30...
Qc5 {[%clk 0:00:40.2]} 31. Ra8+ {[%clk 0:00:26.4]} 31... Kg7 {[%clk 0:00:40.4]}
32. Qa7 {[%clk 0:00:26.9]} 32... Qxa7 {[%clk 0:00:24.8]} 33. Rxa7 {[%clk
0:00:27.8]} 33... Bc5 {[%clk 0:00:24.4]} 34. Rc7 {[%clk 0:00:26.5]} 34... Be3
{[%clk 0:00:24.1]} 35. g4 {[%clk 0:00:24.1]} 35... Bf4+ {[%clk 0:00:19.7]} 36.
Kg2 {[%clk 0:00:24.3]} 36... g5 {[%clk 0:00:17.7]} 37. b4 {[%clk 0:00:23.5]}
37... Rd3 {[%clk 0:00:13]} 38. b5 {[%clk 0:00:22.2]} 38... Rg3+ {[%clk
0:00:12.5]} 39. Kf2 {[%clk 0:00:22.1]} 39... Rxh3 {[%clk 0:00:12.3]} 40. b6
{[%clk 0:00:22.1]} 40... Be3+ {[%clk 0:00:08.9]} 41. Kg2 {[%clk 0:00:22.3]}
41... Bxb6 {[%clk 0:00:07.3]} 42. Rc6 {[%clk 0:00:21.7]} 42... Rh4 {[%clk
0:00:07]} 43. Rxb6 {[%clk 0:00:20.9]} 43... Rxg4+ {[%clk 0:00:07]} 44. Kf3
{[%clk 0:00:21.8]} 44... h5 {[%clk 0:00:06.5]} 45. Rc6 {[%clk 0:00:17.6]} 45...
Rf4+ {[%clk 0:00:06.3]} 46. Ke3 {[%clk 0:00:17]} 46... h4 {[%clk 0:00:06]} 47.
Bd4 {[%clk 0:00:14.9]} 47... h3 {[%clk 0:00:05.6]} 48. Rc2 {[%clk 0:00:14.8]}
48... Rf1 {[%clk 0:00:02.4]} 49. b4 {[%clk 0:00:12.9]} 49... g4 {[%clk
0:00:01.4]} 50. Ke4 {[%clk 0:00:10.4]} 50... g3 {[%clk 0:00:01.1]} 51. Rc3
{[%clk 0:00:10.9]} 1-0

[Event "Late-Titled-Tuesday-Blitz-October-17-2023"]
[Site "Chess.com"]
[Date "2023.10.17"]
[Round "8"]
[White "Arash_Tahbaz"]
[Black "VincentKeymer"]
[Result "0-1"]
[WhiteElo "2912"]
[BlackElo "3095"]
[TimeControl "180+1"]
[EndTime "15:25:58 PDT"]
[Termination "VincentKeymer won by resignation"]

1. Nf3 {[%clk 0:03:00.9]} 1... Nf6 {[%clk 0:02:58.2]} 2. g3 {[%clk 0:03:01.8]}
2... b5 {[%clk 0:02:58.4]} 3. Bg2 {[%clk 0:03:02]} 3... Bb7 {[%clk 0:02:58.5]}
4. O-O {[%clk 0:03:02.9]} 4... e6 {[%clk 0:02:58.7]} 5. d3 {[%clk 0:03:03.7]}
5... c5 {[%clk 0:02:55.3]} 6. e4 {[%clk 0:03:01]} 6... Be7 {[%clk 0:02:52.8]} 7.
Nfd2 {[%clk 0:02:55.2]} 7... Qc7 {[%clk 0:02:41.3]} 8. f4 {[%clk 0:02:55.2]}
8... d6 {[%clk 0:02:39.7]} 9. Nc3 {[%clk 0:02:52.4]} 9... a6 {[%clk 0:02:38.8]}
10. Ne2 {[%clk 0:02:41.8]} 10... Nc6 {[%clk 0:02:37.5]} 11. Nf3 {[%clk
0:02:42.2]} 11... O-O {[%clk 0:02:35.4]} 12. h3 {[%clk 0:02:42.3]} 12... Nd7
{[%clk 0:02:33.2]} 13. g4 {[%clk 0:02:41.9]} 13... f5 {[%clk 0:02:29]} 14. Ng3
{[%clk 0:02:19.6]} 14... fxe4 {[%clk 0:02:18]} 15. Nxe4 {[%clk 0:02:17.4]} 15...
Rae8 {[%clk 0:02:14.1]} 16. Bd2 {[%clk 0:02:16.7]} 16... Nf6 {[%clk 0:02:09.8]}
17. Qe2 {[%clk 0:02:10.4]} 17... Qd7 {[%clk 0:01:59.3]} 18. Rae1 {[%clk
0:02:08.9]} 18... Bd8 {[%clk 0:01:50.9]} 19. c3 {[%clk 0:01:33.2]} 19... Nd5
{[%clk 0:01:50.1]} 20. Nh2 {[%clk 0:01:12.8]} 20... b4 {[%clk 0:01:43.9]} 21.
Ng5 {[%clk 0:01:02]} 21... Bxg5 {[%clk 0:01:28.6]} 22. fxg5 {[%clk 0:01:02.9]}
22... bxc3 {[%clk 0:01:27.1]} 23. Rxf8+ {[%clk 0:01:00.6]} 23... Rxf8 {[%clk
0:01:26.5]} 24. bxc3 {[%clk 0:00:59.8]} 24... Nc7 {[%clk 0:01:23.7]} 25. Nf1
{[%clk 0:00:47.7]} 25... e5 {[%clk 0:01:07.9]} 26. Ne3 {[%clk 0:00:45.5]} 26...
Ne6 {[%clk 0:01:07.8]} 27. Nd5 {[%clk 0:00:44.4]} 27... Ne7 {[%clk 0:01:05.6]}
28. Nb6 {[%clk 0:00:27]} 28... Qc7 {[%clk 0:01:03.6]} 29. Nc4 {[%clk 0:00:27.6]}
29... Bxg2 {[%clk 0:00:58.2]} 30. Qxg2 {[%clk 0:00:28.5]} 30... Kh8 {[%clk
0:00:51]} 31. Qe4 {[%clk 0:00:26.7]} 31... Qd7 {[%clk 0:00:41.4]} 32. Rb1 {[%clk
0:00:16.8]} 32... Qa4 {[%clk 0:00:26.6]} 33. Nxd6 {[%clk 0:00:14.6]} 33... Qc2
{[%clk 0:00:26.7]} 34. Rf1 {[%clk 0:00:05.5]} 34... Qxd2 {[%clk 0:00:21.3]} 35.
Rxf8+ {[%clk 0:00:05.6]} 35... Nxf8 {[%clk 0:00:22.2]} 36. Qxe5 {[%clk
0:00:04.8]} 36... Neg6 {[%clk 0:00:15.8]} 37. Nf7+ {[%clk 0:00:04.9]} 37... Kg8
{[%clk 0:00:15.5]} 38. Qd5 {[%clk 0:00:04.3]} 38... Qe1+ {[%clk 0:00:15.2]} 39.
Kh2 {[%clk 0:00:03.9]} 39... Qe6 {[%clk 0:00:16.1]} 40. Qxe6 {[%clk 0:00:02.3]}
40... Nxe6 {[%clk 0:00:17]} 41. Nd6 {[%clk 0:00:02.5]} 41... Ngf4 {[%clk
0:00:17.4]} 42. h4 {[%clk 0:00:02.2]} 42... Nxd3 {[%clk 0:00:17.6]} 43. Ne4
{[%clk 0:00:03]} 43... Kf8 {[%clk 0:00:17.5]} 44. Kg3 {[%clk 0:00:03.6]} 44...
Ke7 {[%clk 0:00:17.5]} 45. Kf3 {[%clk 0:00:04.3]} 45... Ne5+ {[%clk 0:00:17.5]}
46. Ke3 {[%clk 0:00:04.7]} 46... Nxg4+ {[%clk 0:00:17.7]} 47. Kd3 {[%clk
0:00:05.6]} 47... Ne5+ {[%clk 0:00:18.2]} 48. Kc2 {[%clk 0:00:06.3]} 48... Kd7
{[%clk 0:00:18.5]} 49. Kb3 {[%clk 0:00:07]} 49... Kc6 {[%clk 0:00:18.9]} 50. Ng3
{[%clk 0:00:07.2]} 50... Kd5 {[%clk 0:00:16.4]} 51. Nf5 {[%clk 0:00:07.6]} 51...
Ke4 {[%clk 0:00:16.6]} 52. Ne7 {[%clk 0:00:07.8]} 52... Kf4 {[%clk 0:00:16.5]}
53. Ka4 {[%clk 0:00:08.2]} 53... Kg4 {[%clk 0:00:15.9]} 54. Ka5 {[%clk
0:00:07.8]} 54... Kxh4 {[%clk 0:00:16.4]} 55. Kxa6 {[%clk 0:00:08.4]} 55... Kxg5
{[%clk 0:00:17.1]} 56. a4 {[%clk 0:00:09]} 56... h5 {[%clk 0:00:17.6]} 57. Kb5
{[%clk 0:00:09.5]} 57... h4 {[%clk 0:00:18.1]} 58. Nd5 {[%clk 0:00:10.2]} 58...
h3 {[%clk 0:00:18.2]} 0-1

[Event "Late-Titled-Tuesday-Blitz-October-17-2023"]
[Site "Chess.com"]
[Date "2023.10.17"]
[Round "8"]
[White "borocotoajua"]
[Black "Tunahan_Makaraci"]
[Result "1-0"]
[WhiteElo "2577"]
[BlackElo "2388"]
[TimeControl "180+1"]
[EndTime "15:26:10 PDT"]
[Termination "borocotoajua won on time"]

1. d4 {[%clk 0:02:56.9]} 1... d5 {[%clk 0:02:59.8]} 2. Nf3 {[%clk 0:02:56.9]}
2... c5 {[%clk 0:02:56.9]} 3. c4 {[%clk 0:02:56.1]} 3... e6 {[%clk 0:02:57.1]}
4. cxd5 {[%clk 0:02:55.5]} 4... exd5 {[%clk 0:02:58]} 5. Nc3 {[%clk 0:02:54]}
5... Nc6 {[%clk 0:02:57.3]} 6. g3 {[%clk 0:02:53.4]} 6... Nf6 {[%clk 0:02:57.2]}
7. Bg2 {[%clk 0:02:53]} 7... cxd4 {[%clk 0:02:57.7]} 8. Nxd4 {[%clk 0:02:53.1]}
8... Bc5 {[%clk 0:02:58.2]} 9. Nb3 {[%clk 0:02:52.5]} 9... Bb6 {[%clk
0:02:58.2]} 10. O-O {[%clk 0:02:52.8]} 10... d4 {[%clk 0:02:58.4]} 11. Na4
{[%clk 0:02:49.9]} 11... O-O {[%clk 0:02:58.2]} 12. Bg5 {[%clk 0:02:48.4]} 12...
Re8 {[%clk 0:02:58.3]} 13. Nxb6 {[%clk 0:02:41.7]} 13... axb6 {[%clk 0:02:58.3]}
14. Bxc6 {[%clk 0:02:22]} 14... bxc6 {[%clk 0:02:57.9]} 15. Nxd4 {[%clk
0:02:21.8]} 15... h6 {[%clk 0:02:55.1]} 16. Bf4 {[%clk 0:02:17.4]} 16... Bb7
{[%clk 0:02:48.9]} 17. Nf5 {[%clk 0:02:04.1]} 17... Qxd1 {[%clk 0:02:47.5]} 18.
Rfxd1 {[%clk 0:02:02.6]} 18... Rxe2 {[%clk 0:02:48.4]} 19. Nd6 {[%clk
0:01:59.2]} 19... Ba6 {[%clk 0:02:41.7]} 20. Rac1 {[%clk 0:01:29.5]} 20... c5
{[%clk 0:02:36.3]} 21. b4 {[%clk 0:01:17]} 21... cxb4 {[%clk 0:02:16.5]} 22. Rc7
{[%clk 0:01:17.9]} 22... Rd8 {[%clk 0:02:02]} 23. Rb1 {[%clk 0:01:08.7]} 23...
g5 {[%clk 0:02:00.9]} 24. Nxf7 {[%clk 0:01:08.8]} 24... gxf4 {[%clk 0:01:16.6]}
25. Nxd8 {[%clk 0:01:08.5]} 25... fxg3 {[%clk 0:01:17.5]} 26. hxg3 {[%clk
0:01:07.9]} 26... Ng4 {[%clk 0:01:09.3]} 27. Rxb4 {[%clk 0:00:55.1]} 27... Nxf2
{[%clk 0:01:08.2]} 28. Rxb6 {[%clk 0:00:39.2]} 28... Nh3+ {[%clk 0:01:05.4]} 29.
Kh1 {[%clk 0:00:38.8]} 29... Bd3 {[%clk 0:01:05.3]} 30. Re6 {[%clk 0:00:15.7]}
30... Be4+ {[%clk 0:00:48.1]} 31. Rxe4 {[%clk 0:00:15.9]} 31... Rxe4 {[%clk
0:00:49]} 32. Kg2 {[%clk 0:00:16.7]} 32... Ng5 {[%clk 0:00:48.3]} 33. Nc6 {[%clk
0:00:16.2]} 33... Re2+ {[%clk 0:00:47.9]} 34. Kf1 {[%clk 0:00:16.2]} 34... Rxa2
{[%clk 0:00:48.8]} 35. Ne7+ {[%clk 0:00:16.4]} 35... Kf7 {[%clk 0:00:47.9]} 36.
Nf5+ {[%clk 0:00:16.1]} 36... Kg6 {[%clk 0:00:48.2]} 37. Nh4+ {[%clk 0:00:13.7]}
37... Kh5 {[%clk 0:00:47.8]} 38. Rc4 {[%clk 0:00:12.9]} 38... Nf7 {[%clk
0:00:29.7]} 39. Nf5 {[%clk 0:00:11.7]} 39... Kg5 {[%clk 0:00:27.1]} 40. Nh4
{[%clk 0:00:08.7]} 40... Ne5 {[%clk 0:00:23.9]} 41. Rc5 {[%clk 0:00:08.9]} 41...
Kf6 {[%clk 0:00:24.1]} 42. Rb5 {[%clk 0:00:09.4]} 42... Nc4 {[%clk 0:00:19.3]}
43. Rc5 {[%clk 0:00:07.3]} 43... Nd2+ {[%clk 0:00:17.8]} 44. Ke1 {[%clk
0:00:06.6]} 44... Ne4 {[%clk 0:00:18]} 45. Rc6+ {[%clk 0:00:06.6]} 45... Kg5
{[%clk 0:00:17.9]} 46. Rg6+ {[%clk 0:00:04.3]} 46... Kh5 {[%clk 0:00:17.2]} 47.
Rg7 {[%clk 0:00:04.2]} 47... Nxg3 {[%clk 0:00:12.6]} 48. Rxg3 {[%clk 0:00:03.6]}
48... Kxh4 {[%clk 0:00:12.7]} 49. Rb3 {[%clk 0:00:04.5]} 49... Rg2 {[%clk
0:00:10.5]} 50. Kf1 {[%clk 0:00:04.7]} 50... Rg5 {[%clk 0:00:09.5]} 51. Kf2
{[%clk 0:00:04.2]} 51... h5 {[%clk 0:00:09.1]} 52. Kf1 {[%clk 0:00:04.5]} 52...
Rg8 {[%clk 0:00:08.2]} 53. Kf2 {[%clk 0:00:04.6]} 53... Kg4 {[%clk 0:00:04.4]}
54. Rg3+ {[%clk 0:00:04.1]} 54... Kh4 {[%clk 0:00:01.2]} 55. Rxg8 {[%clk
0:00:05]} 1-0

[Event "Late-Titled-Tuesday-Blitz-October-17-2023"]
[Site "Chess.com"]
[Date "2023.10.17"]
[Round "8"]
[White "wild3000"]
[Black "jaskol95"]
[Result "1-0"]
[WhiteElo "2441"]
[BlackElo "2572"]
[TimeControl "180+1"]
[EndTime "15:26:15 PDT"]
[Termination "wild3000 won by checkmate"]

1. d4 {[%clk 0:01:40.9]} 1... d5 {[%clk 0:02:57.9]} 2. e3 {[%clk 0:01:41.8]}
2... Nf6 {[%clk 0:02:56.1]} 3. Nf3 {[%clk 0:01:42.7]} 3... c5 {[%clk 0:02:56.4]}
4. Be2 {[%clk 0:01:43.2]} 4... Nc6 {[%clk 0:02:56.4]} 5. O-O {[%clk 0:01:43.3]}
5... b6 {[%clk 0:02:52.5]} 6. c4 {[%clk 0:01:42.2]} 6... e6 {[%clk 0:02:51.4]}
7. cxd5 {[%clk 0:01:41.8]} 7... exd5 {[%clk 0:02:51.6]} 8. b3 {[%clk 0:01:41.9]}
8... Be7 {[%clk 0:02:49.3]} 9. Bb2 {[%clk 0:01:41.8]} 9... O-O {[%clk
0:02:48.9]} 10. Nc3 {[%clk 0:01:41]} 10... Bf5 {[%clk 0:02:39.8]} 11. dxc5
{[%clk 0:01:38]} 11... bxc5 {[%clk 0:02:38.9]} 12. Na4 {[%clk 0:01:38]} 12...
Ne4 {[%clk 0:02:29]} 13. Rc1 {[%clk 0:01:36.8]} 13... Rc8 {[%clk 0:02:20.9]} 14.
Ba6 {[%clk 0:01:33.7]} 14... Rb8 {[%clk 0:02:19.1]} 15. Nd2 {[%clk 0:01:32.8]}
15... Qa5 {[%clk 0:02:14.1]} 16. Nxe4 {[%clk 0:01:29]} 16... Bxe4 {[%clk
0:02:11.9]} 17. Bd3 {[%clk 0:01:25.4]} 17... Bxd3 {[%clk 0:01:59.7]} 18. Qxd3
{[%clk 0:01:24.6]} 18... Nb4 {[%clk 0:01:58.1]} 19. Qc3 {[%clk 0:01:19.8]} 19...
Bf6 {[%clk 0:01:43.8]} 20. Qxc5 {[%clk 0:01:17.2]} 20... Qxc5 {[%clk 0:01:43.1]}
21. Rxc5 {[%clk 0:01:17.4]} 21... Nd3 {[%clk 0:01:38.6]} 22. Bxf6 {[%clk
0:01:12.5]} 22... Nxc5 {[%clk 0:01:38.8]} 23. Nxc5 {[%clk 0:01:13.4]} 23... Rfc8
{[%clk 0:01:22.7]} 24. Bd4 {[%clk 0:01:10.7]} 24... a5 {[%clk 0:01:21.7]} 25. g4
{[%clk 0:01:05.1]} 25... f6 {[%clk 0:01:20.5]} 26. Kg2 {[%clk 0:01:04.5]} 26...
Kf7 {[%clk 0:01:20.9]} 27. h4 {[%clk 0:01:03.4]} 27... h6 {[%clk 0:01:20.2]} 28.
Kf3 {[%clk 0:01:01.1]} 28... Rb5 {[%clk 0:01:20.3]} 29. Rc1 {[%clk 0:00:59.7]}
29... Ke7 {[%clk 0:01:14.1]} 30. Rc3 {[%clk 0:00:55.1]} 30... Rc7 {[%clk
0:01:10.1]} 31. Ke2 {[%clk 0:00:51.6]} 31... Kd6 {[%clk 0:01:09.1]} 32. Na4
{[%clk 0:00:49.6]} 32... Rxc3 {[%clk 0:01:03.3]} 33. Bxc3 {[%clk 0:00:50.5]}
33... Ke6 {[%clk 0:01:00.5]} 34. Kd3 {[%clk 0:00:47.3]} 34... g6 {[%clk
0:01:00.2]} 35. f4 {[%clk 0:00:45]} 35... f5 {[%clk 0:00:58]} 36. g5 {[%clk
0:00:44]} 36... h5 {[%clk 0:00:57.1]} 37. Be5 {[%clk 0:00:38.5]} 37... Kd7
{[%clk 0:00:48.1]} 38. Kc3 {[%clk 0:00:34.1]} 38... Ke6 {[%clk 0:00:46.3]} 39.
a3 {[%clk 0:00:30.3]} 39... Kd7 {[%clk 0:00:42.9]} 40. Bd4 {[%clk 0:00:28.4]}
40... Kc6 {[%clk 0:00:42.8]} 41. b4 {[%clk 0:00:24.1]} 41... axb4+ {[%clk
0:00:43.3]} 42. axb4 {[%clk 0:00:25]} 42... Rb8 {[%clk 0:00:43.6]} 43. Kb3
{[%clk 0:00:23.4]} 43... Ra8 {[%clk 0:00:40.2]} 44. Nc3 {[%clk 0:00:23.3]} 44...
Kd6 {[%clk 0:00:28.8]} 45. Be5+ {[%clk 0:00:20.8]} 45... Kc6 {[%clk 0:00:28.7]}
46. b5+ {[%clk 0:00:19.1]} 46... Kc5 {[%clk 0:00:28.3]} 47. Bd4+ {[%clk
0:00:18.9]} 47... Kd6 {[%clk 0:00:29]} 48. Kb4 {[%clk 0:00:15.9]} 48... Rc8
{[%clk 0:00:28.3]} 49. b6 {[%clk 0:00:14.5]} 49... Kc6 {[%clk 0:00:27.2]} 50.
Nb5 {[%clk 0:00:14.1]} 50... Ra8 {[%clk 0:00:25.2]} 51. Na7+ {[%clk 0:00:13.9]}
51... Kb7 {[%clk 0:00:25.3]} 52. Kc5 {[%clk 0:00:14]} 52... Rd8 {[%clk
0:00:25.6]} 53. Nb5 {[%clk 0:00:12.6]} 53... Ka6 {[%clk 0:00:22.2]} 54. Nc7+
{[%clk 0:00:12.6]} 54... Kb7 {[%clk 0:00:21.9]} 55. Bf6 {[%clk 0:00:11.8]} 55...
Rc8 {[%clk 0:00:21.3]} 56. Kxd5 {[%clk 0:00:10]} 56... Kxb6 {[%clk 0:00:21.3]}
57. Ne6 {[%clk 0:00:10.3]} 57... Rc1 {[%clk 0:00:20.3]} 58. Nf8 {[%clk
0:00:09.3]} 58... Rd1+ {[%clk 0:00:19.7]} 59. Bd4+ {[%clk 0:00:09.4]} 59... Kc7
{[%clk 0:00:19.9]} 60. Nxg6 {[%clk 0:00:10.3]} 60... Kd7 {[%clk 0:00:20.2]} 61.
Ke5 {[%clk 0:00:10.4]} 61... Ke8 {[%clk 0:00:19.9]} 62. Kxf5 {[%clk 0:00:10.6]}
62... Kf7 {[%clk 0:00:20.6]} 63. Ne5+ {[%clk 0:00:11.1]} 63... Kg7 {[%clk
0:00:20.5]} 64. Nf3+ {[%clk 0:00:10.9]} 64... Kh7 {[%clk 0:00:21]} 65. g6+
{[%clk 0:00:10.7]} 65... Kh6 {[%clk 0:00:21.6]} 66. Ng5 {[%clk 0:00:09.5]} 66...
Rf1 {[%clk 0:00:18.8]} 67. Nf7# {[%clk 0:00:09.3]} 1-0

[Event "Late-Titled-Tuesday-Blitz-October-17-2023"]
[Site "Chess.com"]
[Date "2023.10.17"]
[Round "8"]
[White "lluiss"]
[Black "leoduarte"]
[Result "1-0"]
[WhiteElo "2207"]
[BlackElo "2387"]
[TimeControl "180+1"]
[EndTime "15:26:17 PDT"]
[Termination "lluiss won on time"]

1. Nf3 {[%clk 0:02:54.4]} 1... d5 {[%clk 0:02:58.4]} 2. d4 {[%clk 0:02:51]} 2...
Nf6 {[%clk 0:02:56.8]} 3. c4 {[%clk 0:02:49.4]} 3... e6 {[%clk 0:02:56.3]} 4.
cxd5 {[%clk 0:02:48.7]} 4... exd5 {[%clk 0:02:55.8]} 5. Nc3 {[%clk 0:02:49.2]}
5... c6 {[%clk 0:02:55.1]} 6. Qc2 {[%clk 0:02:48.2]} 6... Be7 {[%clk 0:02:46.4]}
7. Bg5 {[%clk 0:02:48.5]} 7... O-O {[%clk 0:02:44.8]} 8. e3 {[%clk 0:02:48.9]}
8... h6 {[%clk 0:02:44.4]} 9. Bh4 {[%clk 0:02:47.6]} 9... Re8 {[%clk 0:02:45]}
10. Bd3 {[%clk 0:02:47.2]} 10... a5 {[%clk 0:02:45.5]} 11. O-O {[%clk 0:02:45]}
11... Na6 {[%clk 0:02:46.1]} 12. a3 {[%clk 0:02:41.1]} 12... Nc7 {[%clk
0:02:46.3]} 13. Rab1 {[%clk 0:02:37]} 13... Ne4 {[%clk 0:02:23.7]} 14. Bxe7
{[%clk 0:02:34.8]} 14... Qxe7 {[%clk 0:02:24.6]} 15. Na4 {[%clk 0:02:24.8]}
15... Nd6 {[%clk 0:01:48.1]} 16. Nb6 {[%clk 0:02:16.3]} 16... Ra7 {[%clk
0:01:45.5]} 17. b4 {[%clk 0:02:10.4]} 17... axb4 {[%clk 0:01:41.2]} 18. axb4
{[%clk 0:02:10]} 18... Ncb5 {[%clk 0:01:34]} 19. Ra1 {[%clk 0:02:05.5]} 19...
Bd7 {[%clk 0:01:04.4]} 20. Rxa7 {[%clk 0:01:47.7]} 20... Nxa7 {[%clk 0:01:05.3]}
21. Ne5 {[%clk 0:01:47.5]} 21... Be6 {[%clk 0:01:03.8]} 22. Ra1 {[%clk
0:01:42.1]} 22... Ndb5 {[%clk 0:01:04.3]} 23. Qc5 {[%clk 0:01:21.3]} 23... f6
{[%clk 0:00:40.1]} 24. Ng6 {[%clk 0:01:04.1]} 24... Qxc5 {[%clk 0:00:31.5]} 25.
bxc5 {[%clk 0:01:03.1]} 25... Kf7 {[%clk 0:00:23.7]} 26. Nf4 {[%clk 0:01:02.4]}
26... g5 {[%clk 0:00:20.5]} 27. Bg6+ {[%clk 0:01:01.3]} 27... Kg7 {[%clk
0:00:17.5]} 28. Bxe8 {[%clk 0:00:58.8]} 28... gxf4 {[%clk 0:00:17]} 29. exf4
{[%clk 0:00:55.2]} 29... Bf5 {[%clk 0:00:09.8]} 30. Bh5 {[%clk 0:00:49.4]} 30...
Nc8 {[%clk 0:00:10.3]} 31. Nxc8 {[%clk 0:00:45.1]} 31... Bxc8 {[%clk 0:00:11.2]}
32. Rd1 {[%clk 0:00:40.8]} 32... Bf5 {[%clk 0:00:10.4]} 33. Be2 {[%clk
0:00:38.6]} 33... Nc3 {[%clk 0:00:08.9]} 34. Rd2 {[%clk 0:00:38.6]} 34... Kf7
{[%clk 0:00:07.2]} 35. Rb2 {[%clk 0:00:34]} 35... Bc8 {[%clk 0:00:04.9]} 36. Bf1
{[%clk 0:00:30.6]} 36... Ke7 {[%clk 0:00:03.1]} 37. f3 {[%clk 0:00:30.5]} 37...
Kd8 {[%clk 0:00:02.4]} 38. Rb3 {[%clk 0:00:27.1]} 38... Na4 {[%clk 0:00:02.2]}
39. Kf2 {[%clk 0:00:24.6]} 39... Kc7 {[%clk 0:00:01.9]} 40. Rb4 {[%clk
0:00:20.4]} 40... b5 {[%clk 0:00:02.5]} 41. cxb6+ {[%clk 0:00:19.6]} 41... Nxb6
{[%clk 0:00:03.1]} 42. g4 {[%clk 0:00:16.6]} 42... Be6 {[%clk 0:00:02.9]} 43. h4
{[%clk 0:00:16.2]} 43... Bf7 {[%clk 0:00:03.5]} 44. f5 {[%clk 0:00:16.3]} 44...
Nc8 {[%clk 0:00:04]} 45. Ra4 {[%clk 0:00:15.3]} 45... Kb7 {[%clk 0:00:02.8]} 46.
f4 {[%clk 0:00:14]} 46... Nb6 {[%clk 0:00:02.9]} 47. Rb4 {[%clk 0:00:14]} 47...
Kc7 {[%clk 0:00:03.4]} 48. Rxb6 {[%clk 0:00:13.8]} 48... Kxb6 {[%clk 0:00:03.7]}
49. Ke3 {[%clk 0:00:14.1]} 49... c5 {[%clk 0:00:02.8]} 50. g5 {[%clk 0:00:11.7]}
50... hxg5 {[%clk 0:00:02.1]} 51. fxg5 {[%clk 0:00:11.7]} 51... fxg5 {[%clk
0:00:01.8]} 52. hxg5 {[%clk 0:00:11.8]} 52... c4 {[%clk 0:00:01.8]} 53. Kd2
{[%clk 0:00:11.2]} 53... Kc6 {[%clk 0:00:01.5]} 54. g6 {[%clk 0:00:10.7]} 54...
Be8 {[%clk 0:00:01.8]} 55. Ke3 {[%clk 0:00:07.2]} 55... Kd6 {[%clk 0:00:02.3]}
56. Kf4 {[%clk 0:00:07.6]} 56... c3 {[%clk 0:00:02.4]} 57. Bd3 {[%clk
0:00:07.2]} 1-0